Workbook

Sheet Feuil2
B9: Outil d'aide à la décision sur l'opportunité d'engraisser les brebis de réforme
R22: fabrice.ranoux@educagri.fr
R23: Les sites expérimentaux
S31: Cliquez sur l'image

Sheet Feuil1
B2: FAUT-IL ENGRAISSER LES BREBIS DE REFORME?
C3: Outil d'aide à la décision sur l'opportunité d'engraisser les brebis de réforme
I6: Cliquez sur la loupe | P6: =IF(G14="","",IF(Q25>0,"VENDEZ VOS BREBIS - NE LES ENGRAISSEZ-PAS !","VOUS POUVEZ ENGRAISSER VOS BREBIS")) -> 
C7: Cliquez pour voir les NEC
H8: 20 | L8: 100 | S8: =IF(I9>2,"","à 50 jours") ->  | U8: =IF(U10="","","à 100 jours") -> 
C9: Poids vif | G9: kg | H9: NEC | I9: =IF(F9="","",H8/10) ->  | K9: GMQ | L9: =IF(F9="","",L8) ->  | M9: g
C10: Cliquez sur les flèches pour faire varier le poids vif, la NEC et le GMQ | P10: Poids théorique | S10: =IF(I9>2,"",F9+(50*(L9/1000))) ->  | T10: =IF(S10="","","kg") ->  | U10: =IF(S10>75,"",F9+(100*(L9/1000))) ->  | V10: =IF(U10="","","kg") -> 
I11: =CONCATENATE(I9," ",F9) -> 
C12: Valeur actuelle estimée | G12: =IF(F9="","",VLOOKUP(I11,E74:I155,4)) ->  | H12: =IF(G12="","","€") ->  | P12: Valeur espérée | S12: =IF(S10="","",VLOOKUP(K13,E74:H155,4)) ->  | T12: =IF(S12="","","€") ->  | U12: =IF(U10="","",VLOOKUP(L13,E74:H155,4)) ->  | V12: =IF(U12="","","€") -> 
K13: =CONCATENATE(L29+I9," ",S10) ->  | L13: =CONCATENATE(L31+I9," ",U10) -> 
C14: Ration envisagée | Q14: Plus-value | S14: =IF(I9>2,"",S12-G12) ->  | T14: =IF(S14="","","€") ->  | U14: =IF(U10="","",U12-G12) ->  | V14: =IF(U14="","","€") -> 
F15: (Cliquez dans la case et choisissez dans la liste)
C17: Prix des concentrés | E17: 160 | F17: € / t | H17: Besoins alimentaires | L17: Coût de la ration | P17: =IF(G14="","",IF(I9>2,"",IF(L19>0.2,"La ration coûte trop cher N'engraissez-pas vos brebis",CONCATENATE("Vous pouvez espérer une marge sur coût d'alimentation de :")))) -> 
C18: Cliquez sur les flèches pour faire varier le prix | H18: UFL | I18: PDI
C19: Quantité distribuée | E19: =IF(G14="","",VLOOKUP(G14,G62:K66,5)) ->  | F19: =IF(E19="","","g / jour") ->  | H19: =IF(F9="","",I43) ->  | I19: =IF(F9="","",CONCATENATE(ROUND(K43,0)," g")) ->  | L19: =IF(I9>2,"",IF(G14="","",VLOOKUP(G14,G53:K58,5))) ->  | M19: =IF(L19="","","€ /j") ->  | Q19: =IF(R19="","","par brebis") ->  | R19: =IF(G14="","",IF(P17="","",IF(P17="La ration coûte trop cher N'engraissez-pas vos brebis","",U23))) ->  | T19: =IF(R19="","","€") ->  | U19: =IF(G14="","",IF(P17="","",IF(P17="La ration coûte trop cher N'engraissez-pas vos brebis","",U24))) ->  | V19: =IF(U19="","","€") -> 
H23: TRUE | I23: =IF(H23=FALSE,0,E19*(E17/1000000)) ->  | K23: =VLOOKUP(G14,G62:I69,3) ->  | Q23: =IF(L19>0.21,1,0) -> 1 | U23: =S14-(L19*50) -> 
K24: =L43/K23 ->  | Q24: =IF(I9>2,1,0) -> 1 | U24: =IF(U10="",0,U14-(L19*100)) -> 0
K25: =K24*VLOOKUP(G14,G62:I66,2) ->  | Q25: =Q23+Q24 -> 2
U26: =MAX(U23,U24) -> 
K27: =L9/1000 -> 
K28: =K27*50 -> 
K29: =K28/F9 ->  | L29: =IF(K29<0.1,0.5,IF(K29>0.16,1.5,1)) -> 
K30: =K27*100 -> 
E31: 0.5 | K31: =K30/F9 ->  | L31: =IF(K31<0.1,0.5,IF(K31>0.16,1.5,1)) -> 
E32: 1
I33: NEC < 2
I34: NEC 2
I35: NEC > 3
H38: Poids vif | I38: Bes UF | K38: Bes PDI | L38: CI
H39: =F9 -> 0 | I39: =0.033*POWER(H39,0.75) -> 0 | K39: =2.5*POWER(H39,0.75) -> 0 | L39: =0.089*POWER(H39,0.75) -> 0
H40: GMQ
H41: =L9 ->  | I41: =IF(H41=50,0.28,IF(H41=100,0.56,IF(H41=50,0.84,1.12))) -> 1.12 | K41: =IF(H41=50,11,IF(H41=100,22,IF(H41=150,33,44))) -> 44
I43: =I41+I39 -> 1.12 | K43: =K41+K39 -> 44 | L43: =L41+L39 -> 0
G53: Enrubannage + pulpe | H53: 0.06 | I53: =0.0007*$E$17 -> 0.112 | K53: =(H53*$K$24)+I53 -> 
G54: Ensilage de maïs | H54: 0.1 | K54: =(H54*$K$24)+I54 -> 
G55: Foin + céréales | H55: 0.055 | I55: =0.0007*$E$17 -> 0.112
G56: Herbe de printemps | H56: 0.02
G57: Pâturage dérobés | H57: 0.01
G62: Enrubannage + pulpe | H62: 0.1 | I62: 1.5 | K62: 800
G63: Ensilage de maïs | H63: 0.2 | I63: 1.3 | K63: 0
G64: Foin + céréales | H64: 0.08 | I64: 1.7 | K64: 700
G65: Herbe de printemps | H65: 0.05 | I65: 1 | K65: 0
G66: Pâturage dérobés | H66: 0.07 | I66: 0.95 | K66: 0
F74: NEC | G74: Poids | H74: Prix | K74: NEC fin
E75: =CONCATENATE(F75," ",G75) -> 0,5 45 | F75: 0.5 | G75: 45 | H75: 7 | I75: =H75/G75 -> 0.1555555556 | K75: =L29+I9 ->  | L75: =S10 -> 
E76: =CONCATENATE(F76," ",G76) -> 0,5 50 | F76: 0.5 | G76: 50 | H76: 7 | I76: 0.14 | K76: NEC fin
E77: 0,5 55 | F77: 0.5 | G77: 55 | H77: 7 | I77: 0.1272727273 | K77: =L31+I9 ->  | L77: =U10 -> 
E78: 0,5 60 | F78: 0.5 | G78: 60 | H78: 7 | I78: 0.1166666667 | K78: NEC début
E79: 0,5 65 | F79: 0.5 | G79: 65 | H79: 7 | I79: 0.1076923077 | K79: =I9 ->  | L79: =F9 -> 0
E80: 0,5 70 | F80: 0.5 | G80: 70 | H80: 7 | I80: 0.1 | K80: =IF(K75<1.5,7,IF(K75<2,L75*K96,IF(K75<2.5,L75*K106,IF(K75<3,L75*K114,L75*K129)))) ->  | L80: prix 50 j
E81: 0,5 75 | F81: 0.5 | G81: 75 | H81: 7 | I81: 0.09333333333
E82: 0,5 80 | F82: 0.5 | G82: 80 | H82: 7 | I82: 0.0875 | K82: =IF(K77<1.5,7,IF(K77<2,L77*K96,IF(K77<2.5,L77*K106,IF(K77<3,L77*K114,L77*K129)))) ->  | L82: prix 100 j
E83: 0,5 85 | F83: 0.5 | G83: 85 | H83: 7 | I83: 0.08235294118
E84: 1 45 | F84: 1 | G84: 45 | H84: 7 | I84: 0.1555555556 | K84: =IF(K79<1.5,7,IF(K79<2,L79*K96,IF(K79<2.5,L79*K106,IF(K79<3,L79*K114,L79*K129)))) -> 0 | L84: prix début
E85: 1 50 | F85: 1 | G85: 50 | H85: 7 | I85: 0.14
E86: 1 55 | F86: 1 | G86: 55 | H86: 7 | I86: 0.1272727273
E87: 1 60 | F87: 1 | G87: 60 | H87: 7 | I87: 0.1166666667
E88: 1 65 | F88: 1 | G88: 65 | H88: 7 | I88: 0.1076923077
E89: 1 70 | F89: 1 | G89: 70 | H89: 7 | I89: 0.1
E90: 1 75 | F90: 1 | G90: 75 | H90: 7 | I90: 0.09333333333
E91: 1 80 | F91: 1 | G91: 80 | H91: 7 | I91: 0.0875 | K91: =AVERAGE(I75:I92) -> 0.1122637257
E92: 1 85 | F92: 1 | G92: 85 | H92: 7 | I92: 0.08235294118
E93: 1,5 45 | F93: 1.5 | G93: 45 | H93: 16 | I93: 0.3555555556
E94: 1,5 50 | F94: 1.5 | G94: 50 | H94: 16 | I94: 0.32
E95: 1,5 55 | F95: 1.5 | G95: 55 | H95: 16 | I95: 0.2909090909
E96: 1,5 60 | F96: 1.5 | G96: 60 | H96: 16 | I96: 0.2666666667 | K96: =AVERAGE(I93:I101) -> 0.2566028017
E97: 1,5 65 | F97: 1.5 | G97: 65 | H97: 16 | I97: 0.2461538462
E98: 1,5 70 | F98: 1.5 | G98: 70 | H98: 16 | I98: 0.2285714286
E99: 1,5 75 | F99: 1.5 | G99: 75 | H99: 16 | I99: 0.2133333333
E100: 1,5 80 | F100: 1.5 | G100: 80 | H100: 16 | I100: 0.2
E101: 1,5 85 | F101: 1.5 | G101: 85 | H101: 16 | I101: 0.1882352941
E102: 2 45 | F102: 2 | G102: 45 | H102: 30 | I102: 0.6666666667
E103: 2 50 | F103: 2 | G103: 50 | H103: 35 | I103: 0.7
E104: 2 55 | F104: 2 | G104: 55 | H104: 40 | I104: 0.7272727273
E105: 2 60 | F105: 2 | G105: 60 | H105: 40 | I105: 0.6666666667
E106: 2 65 | F106: 2 | G106: 65 | H106: 40 | I106: 0.6153846154 | K106: =AVERAGE(I102:I110) -> 0.6400727268
E107: 2 70 | F107: 2 | G107: 70 | H107: 40 | I107: =H107/G107 -> 0.5714285714
E108: 2 75 | F108: 2 | G108: 75 | H108: 45 | I108: 0.6
E109: 2 80 | F109: 2 | G109: 80 | H109: 50 | I109: 0.625
E110: 2 85 | F110: 2 | G110: 85 | H110: 50 | I110: 0.5882352941
E111: 2,5 45 | F111: 2.5 | G111: 45 | H111: 40 | I111: 0.8888888889
E112: 2,5 50 | F112: 2.5 | G112: 50 | H112: 40 | I112: 0.8
E113: 2,5 55 | F113: 2.5 | G113: 55 | H113: 45 | I113: 0.8181818182
E114: 2,5 60 | F114: 2.5 | G114: 60 | H114: 45 | I114: 0.75 | K114: =AVERAGE(I110:I119) -> 0.7240519856
E115: 2,5 65 | F115: 2.5 | G115: 65 | H115: 45 | I115: 0.6923076923
E116: 2,5 70 | F116: 2.5 | G116: 70 | H116: 45 | I116: 0.6428571429
E117: 2,5 75 | F117: 2.5 | G117: 75 | H117: 50 | I117: 0.6666666667
E118: 2,5 80 | F118: 2.5 | G118: 80 | H118: 55 | I118: 0.6875
E119: 2,5 85 | F119: 2.5 | G119: 85 | H119: 60 | I119: 0.7058823529
E120: 3 45 | F120: 3 | G120: 45 | H120: 60 | I120: 1.333333333
E121: 3 50 | F121: 3 | G121: 50 | H121: 60 | I121: 1.2
E122: 3 55 | F122: 3 | G122: 55 | H122: 65 | I122: 1.181818182
E123: 3 60 | F123: 3 | G123: 60 | H123: 65 | I123: 1.083333333
E124: 3 65 | F124: 3 | G124: 65 | H124: 65 | I124: 1
E125: 3 70 | F125: 3 | G125: 70 | H125: 65 | I125: 0.9285714286
E126: 3 75 | F126: 3 | G126: 75 | H126: 75 | I126: 1
E127: 3 80 | F127: 3 | G127: 80 | H127: 75 | I127: 0.9375
E128: 3 85 | F128: 3 | G128: 85 | H128: 80 | I128: 0.9411764706
E129: 3,5 45 | F129: 3.5 | G129: 45 | H129: 60 | I129: 1.333333333 | K129: =AVERAGE(I120:I155) -> 1.0938869
E130: 3,5 50 | F130: 3.5 | G130: 50 | H130: 60 | I130: 1.2
E131: 3,5 55 | F131: 3.5 | G131: 55 | H131: 65 | I131: 1.181818182
E132: 3,5 60 | F132: 3.5 | G132: 60 | H132: 65 | I132: 1.083333333
E133: 3,5 65 | F133: 3.5 | G133: 65 | H133: 65 | I133: 1
E134: 3,5 70 | F134: 3.5 | G134: 70 | H134: 65 | I134: 0.9285714286
E135: 3,5 75 | F135: 3.5 | G135: 75 | H135: 75 | I135: 1
E136: 3,5 80 | F136: 3.5 | G136: 80 | H136: 75 | I136: 0.9375
E137: 3,5 85 | F137: 3.5 | G137: 85 | H137: 80 | I137: 0.9411764706
E138: 4 45 | F138: 4 | G138: 45 | H138: 60 | I138: 1.333333333
E139: 4 50 | F139: 4 | G139: 50 | H139: 60 | I139: =H139/G139 -> 1.2
E140: =CONCATENATE(F140," ",G140) -> 4 55 | F140: 4 | G140: 55 | H140: 65 | I140: 1.181818182
E141: 4 60 | F141: 4 | G141: 60 | H141: 70 | I141: 1.166666667
E142: 4 65 | F142: 4 | G142: 65 | H142: 70 | I142: 1.076923077
E143: 4 70 | F143: 4 | G143: 70 | H143: 70 | I143: 1
E144: 4 75 | F144: 4 | G144: 75 | H144: 80 | I144: 1.066666667
E145: 4 80 | F145: 4 | G145: 80 | H145: 80 | I145: 1
E146: 4 85 | F146: 4 | G146: 85 | H146: 90 | I146: 1.058823529
E147: 4,5 45 | F147: 4.5 | G147: 45 | H147: 60 | I147: 1.333333333
E148: 4,5 50 | F148: 4.5 | G148: 50 | H148: 60 | I148: 1.2
E149: 4,5 55 | F149: 4.5 | G149: 55 | H149: 65 | I149: 1.181818182
E150: 4,5 60 | F150: 4.5 | G150: 60 | H150: 70 | I150: 1.166666667
E151: 4,5 65 | F151: 4.5 | G151: 65 | H151: 70 | I151: 1.076923077
E152: 4,5 70 | F152: 4.5 | G152: 70 | H152: 70 | I152: 1
E153: 4,5 75 | F153: 4.5 | G153: 75 | H153: 80 | I153: 1.066666667
E154: 4,5 80 | F154: 4.5 | G154: 80 | H154: 80 | I154: 1
E155: 4,5 85 | F155: 4.5 | G155: 85 | H155: 90 | I155: 1.058823529
